fUSD/lending_fUSD_20260514
["ID","MTS","AMOUNT","RATE_DAILY","PERIOD"]
[422241754,1778751031000,-500.0,0.00011522,2]
[422241752,1778751031000,-500.0,0.00011522,2]
[422241750,1778751031000,-500.0,0.00011522,2]
[422241762,1778751031000,-25422.31255863,0.00011529,2]
[422241761,1778751031000,-6063.85352217,0.00011529,2]
[422241758,1778751031000,-500.0,0.00011522,2]
[422241760,1778751031000,-500.0,0.00011522,2]
[422241757,1778751031000,-500.0,0.00011522,2]
[422241751,1778751031000,-500.0,0.00011522,2]
[422241741,1778751031000,-4907.47,0.00011281,2]
[422241759,1778751031000,-500.0,0.00011522,2]
[422241739,1778751031000,-8406.339343,0.00011167,2]
[422241722,1778751031000,-3664.315496,0.00011093,2]
[422241732,1778751031000,-150.0,0.00011166,2]
[422241730,1778751031000,-300.0,0.00011166,2]
[422241744,1778751031000,-2000.0,0.00011427,2]
[422241733,1778751031000,-2958.98956594,0.00011167,2]
[422241736,1778751031000,-868.52832,0.00011167,2]
[422241745,1778751031000,-751.02,0.00011507,2]
[422241734,1778751031000,-405.21062676,0.00011167,2]
[422241742,1778751031000,-29999.99,0.00011281,2]
[422241747,1778751031000,-500.0,0.00011522,2]
[422241743,1778751031000,-426.92,0.0001135,2]
[422241746,1778751031000,-166.49,0.00011514,2]
[422241749,1778751031000,-500.0,0.00011522,2]
[422241748,1778751031000,-500.0,0.00011522,2]
[422241766,1778751032000,-500.0,0.00011628,2]
[422241763,1778751032000,-303.63739543,0.00011529,2]
[422241764,1778751032000,-500.0,0.00011529,2]
[422241765,1778751032000,-166.90746062,0.00011571,2]
[422241768,1778751032000,-500.0,0.00011628,2]
[422241767,1778751032000,-500.0,0.00011628,2]
[422241770,1778751032000,-257.56799985,0.00011628,2]
[422241769,1778751032000,-500.0,0.00011628,2]
[422241772,1778751032000,-242.3076055,0.00011629,2]
[422241774,1778751032000,-30835.3627832,0.00011629,2]
[422241771,1778751032000,-65782.1238695,0.00011629,2]
[422241775,1778751032000,-43457.53704182,0.00011629,2]
[422241777,1778751032000,-343.29292514,0.00011629,2]
[422241776,1778751032000,-927.55529614,0.00011629,2]
[422241782,1778751032000,-254.14013485,0.00011629,2]
[422241783,1778751032000,-369.98931999,0.00011629,2]
[422241779,1778751032000,-592.2336,0.00011629,2]
[422241778,1778751032000,-79481.6918646,0.00011629,2]
[422241780,1778751032000,-3366.73601876,0.00011629,2]
[422241781,1778751032000,-693.04329282,0.00011629,2]
[422241773,1778751032000,-178612.67223045,0.00011629,2]
[422241790,1778751037000,-2098.95400816,0.00011629,2]
[422241792,1778751037000,-6234.9535456,0.00011629,2]
[422241793,1778751037000,-41990.3494582,0.00011629,2]
[422241791,1778751037000,-695.92488047,0.00011629,2]
[422241789,1778751037000,-152.0,0.00010795,2]
[422241794,1778751037000,-2500.0,0.00011677,2]
[422241795,1778751037000,-500.0,0.00011803,2]
[422241796,1778751037000,-30468.26785016,0.0001189,2]
[422241798,1778751037000,-1373.00546828,0.0001189,2]
[422241797,1778751037000,-1362.50130044,0.0001189,2]
[422241819,1778751039000,-3349.26115119,0.0001189,2]
[422241817,1778751039000,-565.62499999,0.0001189,2]
[422241818,1778751039000,-6410.09324054,0.0001189,2]
[422241816,1778751039000,-4030.55,0.0001189,2]
[422241820,1778751040000,-47710.60425603,0.0001189,2]
[422241840,1778751040000,-151.0,0.0001189,2]
[422241841,1778751040000,-151.0,0.0001189,2]
[422241839,1778751040000,-151.0,0.0001189,2]
[422241842,1778751040000,-151.0,0.0001189,2]
[422241843,1778751040000,-151.0,0.0001189,2]
[422241849,1778751040000,-151.0,0.00012033,2]
[422241846,1778751040000,-3891.85044857,0.00012019,2]
[422241845,1778751040000,-151.0,0.00011999,2]
[422241847,1778751040000,-227.36,0.00012033,2]
[422241850,1778751040000,-500.0,0.00012077,2]
[422241848,1778751040000,-151.0,0.00012033,2]
[422241844,1778751040000,-166.49,0.0001197,2]
[422241837,1778751040000,-151.0,0.0001189,2]
[422241829,1778751040000,-1216.849962,0.0001189,2]
[422241835,1778751040000,-2377.493607,0.0001189,2]
[422241833,1778751040000,-2377.493607,0.0001189,2]
[422241834,1778751040000,-2377.493607,0.0001189,2]
[422241827,1778751040000,-151.0,0.0001189,2]
[422241832,1778751040000,-151.0,0.0001189,2]
[422241825,1778751040000,-197.671785,0.0001189,2]
[422241826,1778751040000,-151.0,0.0001189,2]
[422241824,1778751040000,-151.0,0.0001189,2]
[422241830,1778751040000,-1216.849962,0.0001189,2]
[422241831,1778751040000,-1216.849962,0.0001189,2]
[422241828,1778751040000,-1216.849962,0.0001189,2]
[422241852,1778751040000,-164.73,0.00012087,2]
[422241823,1778751040000,-151.0,0.0001189,2]
[422241821,1778751040000,-12239.17412066,0.0001189,2]
[422241836,1778751040000,-2377.493607,0.0001189,2]
[422241854,1778751040000,-255.0,0.00012216,2]
[422241822,1778751040000,-151.0,0.0001189,2]
[422241858,1778751040000,-386.56,0.00012329,2]
[422241856,1778751040000,-1680.0,0.00012264,2]
[422241887,1778751040000,-7222.67177033,0.00013,5]
[422241886,1778751040000,-5172.13608423,0.00013,2]
[422241885,1778751040000,-700.0,0.000129,4]
[422241884,1778751040000,-2500.0,0.000129,4]
[422241882,1778751040000,-166.49,0.00012882,2]
[422241883,1778751040000,-151.0,0.0001289,2]
[422241878,1778751040000,-154.3164136,0.00012746,2]
[422241877,1778751040000,-193.08082,0.0001271,2]
[422241875,1778751040000,-1359.64407,0.0001271,2]
[422241876,1778751040000,-193.08082,0.0001271,2]
[422241874,1778751040000,-1359.64407,0.0001271,2]
[422241873,1778751040000,-1359.64407,0.0001271,2]
[422241879,1778751040000,-332.75,0.00012757,2]
[422241871,1778751040000,-1359.64407,0.0001271,2]
[422241838,1778751040000,-151.0,0.0001189,2]
[422241881,1778751040000,-167.45,0.00012851,2]
[422241861,1778751040000,-3654.0,0.00012444,2]
[422241872,1778751040000,-1359.64407,0.0001271,2]
[422241860,1778751040000,-617.73554777,0.00012443,2]
[422241859,1778751040000,-166.49,0.00012426,2]
[422241857,1778751040000,-420.0,0.00012268,2]
[422241865,1778751040000,-350.0,0.00012643,2]
[422241862,1778751040000,-311.09024493,0.000125,2]
[422241868,1778751040000,-568.95772043,0.00012703,2]
[422241867,1778751040000,-2000.0,0.00012697,2]
[422241863,1778751040000,-350.0,0.00012516,2]
[422241864,1778751040000,-217.42,0.00012592,2]
[422241869,1778751040000,-680.16742271,0.00012703,2]
[422241870,1778751040000,-1359.64407,0.0001271,2]
[422241880,1778751040000,-5261.24,0.00012757,2]
[422241866,1778751040000,-2500.0,0.00012654,2]
[422241891,1778751042000,-565.0021467,0.00013,5]
[422241897,1778751043000,-151.0,0.00013,2]
[422241892,1778751043000,-169.43320965,0.00013,5]
[422241893,1778751043000,-3265.38520171,0.00013,5]
[422241895,1778751043000,-151.0,0.00013,2]
[422241900,1778751043000,-1216.849962,0.00013,2]
[422241894,1778751043000,-151.0,0.00013,2]
[422241896,1778751043000,-151.0,0.00013,2]
[422241904,1778751043000,-822.18680822,0.00013,2]
[422241902,1778751043000,-1216.849962,0.00013,2]
[422241903,1778751043000,-394.66315378,0.00013,2]
[422241899,1778751043000,-1216.849962,0.00013,2]
[422241905,1778751043000,-151.0,0.00013,2]
[422241906,1778751043000,-2377.493607,0.00013,2]
[422241907,1778751043000,-498.47325704,0.00013,2]
[422241898,1778751043000,-151.0,0.00013,2]
[422241915,1778751046000,-151.0,0.00013,2]
[422241911,1778751046000,-2377.493607,0.00013,2]
[422241910,1778751046000,-1879.02034996,0.00013,2]
[422241913,1778751046000,-151.0,0.00013,2]
[422241912,1778751046000,-2377.493607,0.00013,2]
[422241922,1778751046000,-84.04233192,0.00013026,2]
[422241914,1778751046000,-151.0,0.00013,2]
[422241918,1778751046000,-151.0,0.00013,2]
[422241916,1778751046000,-151.0,0.00013,2]
[422241917,1778751046000,-151.0,0.00013,2]
[422241921,1778751046000,-2231.57664739,0.00013026,2]
[422241920,1778751046000,-119.42335261,0.00013026,2]
[422241919,1778751046000,-164.73,0.00013017,2]
[422241985,1778751453000,153.18,7.307e-05,2]
[422241984,1778751453000,153.18,6.599e-05,2]
[422241983,1778751453000,153.18,5.892e-05,2]
[422241987,1778751454000,153.18,8.722e-05,2]
[422241986,1778751454000,153.18,8.015e-05,2]
[422241988,1778751454000,153.18,9.43e-05,2]
[422241995,1778751873000,150.0,9.833e-05,2]
[422241996,1778752042000,3100.0,0.000116,4]
[422241997,1778752044000,6200.0,0.000117,4]
[422241998,1778752046000,9300.0,0.000118,4]
[422241999,1778752048000,12500.0,0.000119,4]
[422242000,1778752056000,150.0,9.833e-05,2]
[422242002,1778752152000,-91.1557626,0.00010304,2]
[422242001,1778752152000,-153.18,0.00010138,2]
[422242005,1778752231000,-158.8442374,0.00010304,2]
[422242020,1778752231000,-250.0,0.00011151,2]
[422242016,1778752231000,-177.27,0.00010935,2]
[422242021,1778752231000,-300.0,0.00011431,2]
[422242017,1778752231000,-150.0,0.00010949,2]
[422242018,1778752231000,-163.06,0.00011008,2]
[422242015,1778752231000,-164.61,0.00010885,2]
[422242011,1778752231000,-150.0,0.00010711,2]
[422242010,1778752231000,-150.0,0.00010607,2]
[422242008,1778752231000,-250.0,0.00010537,2]
[422242013,1778752231000,-229.0,0.00010815,2]
[422242009,1778752231000,-285.28,0.00010568,2]
[422242007,1778752231000,-50.9690374,0.00010503,2]
[422242006,1778752231000,-99.0309626,0.00010503,2]
[422242012,1778752231000,-152.0,0.00010802,2]
[422242019,1778752231000,-2000.0,0.00011079,2]
[422242014,1778752231000,-153.18,0.00010845,2]
[422242022,1778752231000,-1200.0,0.00011431,2]
[422242023,1778752231000,-300.0,0.00011431,2]
[422242037,1778752231000,-2993.88054873,0.00011904,2]
[422242038,1778752231000,-2424.07895351,0.00011904,2]
[422242032,1778752231000,-33557.79213307,0.00011904,2]
[422242035,1778752231000,-56142.27616644,0.00011904,2]
[422242034,1778752231000,-252.80804943,0.00011904,2]
[422242033,1778752231000,-655.85593076,0.00011904,2]
[422242036,1778752231000,-43531.49116047,0.00011904,2]
[422242030,1778752231000,-154.7273924,0.00011827,2]
[422242029,1778752231000,-500.0,0.00011726,2]
[422242028,1778752231000,-153.18,0.00011553,2]
[422242024,1778752231000,-500.0,0.00011432,2]
[422242026,1778752231000,-177.27,0.00011482,2]
[422242027,1778752231000,-23848.0,0.00011526,2]
[422242025,1778752231000,-12201.56,0.00011432,2]
[422242031,1778752231000,-492.76011988,0.00011894,2]
[422242042,1778752237000,-500.0,0.00011903,2]
[422242043,1778752237000,-357.89275875,0.00011903,2]
[422242045,1778752237000,-279.14699496,0.00011903,2]
[422242044,1778752237000,-500.0,0.00011903,2]
[422242048,1778752238000,-195.16557939,0.00011903,2]
[422242047,1778752238000,-500.0,0.00011903,2]
[422242046,1778752238000,-17.29607833,0.00011903,2]
[422242051,1778752238000,-174.25969961,0.00011903,2]
[422242049,1778752238000,-43.73545193,0.00011903,2]
[422242052,1778752238000,-500.0,0.00011903,2]
[422242053,1778752238000,-229.7771221,0.00011903,2]
[422242055,1778752238000,-417.01468676,0.00011903,2]
[422242054,1778752238000,-270.2228779,0.00011903,2]
[422242056,1778752238000,-82.98531324,0.00011903,2]
[422242050,1778752238000,-456.26454807,0.00011903,2]
[422242057,1778752238000,-281.36284676,0.00011903,2]
[422242087,1778752240000,-500.0,0.00011903,2]
[422242090,1778752240000,-500.0,0.00011903,2]
[422242086,1778752240000,-500.0,0.00011903,2]
[422242085,1778752240000,-500.0,0.00011903,2]
[422242082,1778752240000,-500.0,0.00011903,2]
[422242084,1778752240000,-500.0,0.00011903,2]
[422242083,1778752240000,-500.0,0.00011903,2]
[422242081,1778752240000,-500.0,0.00011903,2]
[422242080,1778752240000,-500.0,0.00011903,2]
[422242078,1778752240000,-500.0,0.00011903,2]
[422242076,1778752240000,-500.0,0.00011903,2]
[422242074,1778752240000,-500.0,0.00011903,2]
[422242077,1778752240000,-500.0,0.00011903,2]
[422242075,1778752240000,-407.94896475,0.00011903,2]
[422242072,1778752240000,-500.0,0.00011903,2]
[422242073,1778752240000,-500.0,0.00011903,2]
[422242071,1778752240000,-218.63715324,0.00011903,2]
[422242079,1778752240000,-271.01458838,0.00011903,2]
[422242088,1778752240000,-500.0,0.00011903,2]
[422242099,1778752240000,-500.0,0.00011903,2]
[422242091,1778752240000,-497.03797391,0.00011903,2]
[422242109,1778752240000,-508.28615974,0.00011904,2]
[422242108,1778752240000,-1564.77872,0.00011904,2]
[422242105,1778752240000,-500.0,0.00011903,2]
[422242089,1778752240000,-500.0,0.00011903,2]
[422242107,1778752240000,-1294280.78836668,0.00011904,2]
[422242104,1778752240000,-500.0,0.00011903,2]
[422242103,1778752240000,-500.0,0.00011903,2]
[422242101,1778752240000,-500.0,0.00011903,2]
[422242106,1778752240000,-500.0,0.00011903,2]
[422242100,1778752240000,-500.0,0.00011903,2]
[422242098,1778752240000,-500.0,0.00011903,2]
[422242092,1778752240000,-500.0,0.00011903,2]
[422242094,1778752240000,-500.0,0.00011903,2]
[422242097,1778752240000,-500.0,0.00011903,2]
[422242096,1778752240000,-500.0,0.00011903,2]
[422242095,1778752240000,-500.0,0.00011903,2]
[422242093,1778752240000,-500.0,0.00011903,2]
[422242102,1778752240000,-500.0,0.00011903,2]
[422242116,1778752242000,-1058.94,0.00011904,2]
[422242117,1778752242000,-15555.51333072,0.00011904,2]
[422242118,1778752242000,-940.87336,0.00011904,2]
[422242119,1778752243000,-539.44516753,0.00011904,2]
[422242120,1778752243000,-1058.9448773,0.00011904,2]
[422242153,1778752245000,-6028.47600185,0.00011928,2]
[422242152,1778752245000,-4915.80292438,0.00011928,2]
[422242151,1778752245000,-150.0,0.00011927,2]
[422242150,1778752245000,-44934.24707562,0.00011904,2]
[422242154,1778752246000,-1202.30727908,0.00011928,2]
[422242167,1778752252000,151.27,6.283e-05,2]
[422242169,1778752252000,151.27,7.211e-05,2]
[422242168,1778752252000,151.27,6.747e-05,2]
[422242170,1778752253000,151.27,7.676e-05,2]
[422242173,1778752253000,151.27,9.069e-05,2]
[422242172,1778752253000,151.27,8.604e-05,2]
[422242171,1778752253000,151.27,8.14e-05,2]
[422242175,1778752254000,151.27,9.997e-05,2]
[422242174,1778752254000,151.27,9.533e-05,2]
[422242176,1778752453000,400.0,0.000115,4]
[422242177,1778752455000,900.0,0.000116,4]
[422242178,1778752457000,1300.0,0.000117,4]
[422242179,1778752460000,1800.0,0.000118,4]
[422242180,1778752462000,2200.0,0.000119,4]
[422242183,1778752919000,271.57502125,0.00027042,120]
[422242182,1778752919000,290.04997742,0.0002,120]
[422242187,1778753134000,6824.24134558,0.0001,2]
[422242188,1778753139000,193.03390383,0.0002,120]
[422242189,1778753140000,878.99751222,9.04e-05,2]
[422242192,1778753195000,162.32,5.303e-05,2]
[422242196,1778753195000,162.32,8.7e-05,2]
[422242195,1778753195000,162.32,7.851e-05,2]
[422242194,1778753195000,162.32,7.001e-05,2]
[422242193,1778753195000,162.32,6.152e-05,2]
[422242197,1778753196000,162.32,9.549e-05,2]
[422242200,1778753232000,1800.0,0.000114,4]
[422242201,1778753234000,3600.0,0.000115,4]
[422242202,1778753236000,5400.0,0.000116,4]
[422242204,1778753238000,5700.0,0.000117,4]
[422242203,1778753238000,1500.0,0.000117,4]
[422242205,1778753240000,9000.0,0.000118,4]
[422242206,1778753242000,1800.0,0.000119,4]
[422242207,1778753263000,2210.0,0.00011655,5]
[422242211,1778753363000,-312.89,0.00010095,2]
[422242212,1778753363000,-162.32,0.00010398,2]
[422242215,1778753363000,-190.42723671,0.00010462,2]
[422242213,1778753363000,-250.0,0.0001043,2]
[422242214,1778753363000,-500.0,0.00010462,2]
[422242216,1778753363000,-91.26955596,0.00010493,2]
[422242217,1778753373000,-398.02152998,0.000102,2]
[422242234,1778753432000,-1200.0,0.00010599,2]
[422242227,1778753432000,-1601.97847002,0.000102,2]
[422242230,1778753432000,-158.73044404,0.00010493,2]
[422242229,1778753432000,-150.0,0.00010403,2]
[422242228,1778753432000,-150.0,0.00010301,2]
[422242232,1778753432000,-167.26,0.00010552,2]
[422242240,1778753432000,-335.68959354,0.000106,2]
[422242231,1778753432000,-249.0,0.00010505,2]
[422242236,1778753432000,-500.0,0.00010599,2]
[422242235,1778753432000,-207.51015131,0.00010599,2]
[422242237,1778753432000,-500.0,0.00010599,2]
[422242239,1778753432000,-449.00336735,0.000106,2]
[422242238,1778753432000,-250.52493113,0.00010599,2]
[422242233,1778753432000,-381.8676865,0.0001059,2]
[422242252,1778753433000,-49690.36243376,0.000106,2]
[422242253,1778753433000,-26831.77894184,0.000106,2]
[422242251,1778753433000,-62024.90218255,0.000106,2]
[422242249,1778753433000,-2164.31040646,0.000106,2]
[422242250,1778753433000,-55515.7211,0.000106,2]
[422242247,1778753433000,-386.61590557,0.00010599,2]
[422242248,1778753433000,-500.0,0.00010599,2]
[422242260,1778753440000,-500.0,0.00010599,2]
[422242262,1778753440000,-125.97517024,0.00010599,2]
[422242261,1778753440000,-101.89677258,0.00010599,2]
[422242268,1778753443000,-272.12805718,0.00010599,2]
[422242269,1778753443000,-500.0,0.00010599,2]
[422242273,1778753443000,-500.0,0.00010599,2]
[422242270,1778753443000,-500.0,0.00010599,2]
[422242271,1778753443000,-221.98178973,0.00010599,2]
[422242272,1778753443000,-500.0,0.00010599,2]
[422242274,1778753443000,-500.0,0.00010599,2]
[422242276,1778753443000,-500.0,0.00010599,2]
[422242283,1778753443000,-500.0,0.00010599,2]
[422242282,1778753443000,-500.0,0.00010599,2]
[422242278,1778753443000,-500.0,0.00010599,2]
[422242277,1778753443000,-557.65902601,0.00010599,2]
[422242280,1778753443000,-500.0,0.00010599,2]
[422242275,1778753443000,-500.0,0.00010599,2]
[422242279,1778753443000,-500.0,0.00010599,2]
[422242284,1778753443000,-500.0,0.00010599,2]
[422242296,1778753443000,-5955.55399573,0.000106,2]
[422242297,1778753443000,-657.92019974,0.000106,2]
[422242293,1778753443000,-102.76887292,0.00010599,2]
[422242290,1778753443000,-500.0,0.00010599,2]
[422242294,1778753443000,-1386.09017056,0.000106,2]
[422242291,1778753443000,-500.0,0.00010599,2]
[422242281,1778753443000,-500.0,0.00010599,2]
[422242292,1778753443000,-397.23112708,0.00010599,2]
[422242289,1778753443000,-500.0,0.00010599,2]
[422242288,1778753443000,-500.0,0.00010599,2]
[422242286,1778753443000,-500.0,0.00010599,2]
[422242287,1778753443000,-500.0,0.00010599,2]
[422242285,1778753443000,-500.0,0.00010599,2]
[422242295,1778753443000,-25262.59408014,0.000106,2]
[422242301,1778753446000,-2195.565,0.000106,2]
[422242306,1778753520000,171.42346219,0.0001,2]
[422242307,1778753532000,330.0,0.00011918,3]
[422242308,1778753582000,-299.48003146,0.00010027,2]
[422242310,1778753703000,175.0,0.00022872,120]
[422242311,1778753704000,175.0,0.00024016,120]
[422242312,1778753756000,5204.55,9.746e-05,2]
[422242313,1778753778000,500.0,9.927e-05,2]
[422242314,1778753830000,2701.27,9.833e-05,2]
[422242315,1778753837000,330.0,0.00011918,3]
[422242316,1778753842000,200.0,9.805e-05,2]
[422242317,1778753869000,2222.0,0.00011776,5]
[422242318,1778753906000,330.0,0.00011918,3]
[422242319,1778753907000,58417.52,9.752e-05,2]
[422242320,1778753920000,500.0,9.927e-05,2]
[422242321,1778753931000,162.11,9.73e-05,2]
[422242322,1778753992000,1852.42,9.6e-05,2]
[422242323,1778754078000,500.0,9.927e-05,2]
[422242324,1778754096000,326.25,9.572e-05,2]
[422242325,1778754097000,197.59,4.877e-05,2]
[422242328,1778754097000,197.59,5.617e-05,2]
[422242327,1778754097000,197.59,5.37e-05,2]
[422242326,1778754097000,197.59,5.124e-05,2]
[422242329,1778754098000,197.59,5.863e-05,2]
[422242331,1778754098000,197.59,6.357e-05,2]
[422242330,1778754098000,197.59,6.11e-05,2]
[422242335,1778754099000,197.59,7.343e-05,2]
[422242334,1778754099000,197.59,7.097e-05,2]
[422242333,1778754099000,197.59,6.85e-05,2]
[422242332,1778754099000,197.59,6.603e-05,2]
[422242336,1778754099000,197.59,7.59e-05,2]
[422242339,1778754100000,197.59,8.33e-05,2]
[422242337,1778754100000,197.59,7.837e-05,2]
[422242341,1778754100000,197.59,8.823e-05,2]
[422242340,1778754100000,197.59,8.576e-05,2]
[422242338,1778754100000,197.59,8.083e-05,2]
[422242344,1778754101000,197.59,9.563e-05,2]
[422242343,1778754101000,197.59,9.316e-05,2]
[422242342,1778754101000,197.59,9.07e-05,2]
[422242345,1778754136000,330.0,0.00011918,3]
[422242346,1778754143000,506.94003969,0.0001375,7]
[422242347,1778754151000,362.10002835,0.00026254,120]
[422242348,1778754178000,181.05001415,0.00013706,7]
[422242349,1778754183000,-530.15605317,0.00010027,2]
[422242350,1778754183000,-1123.56996854,0.00010027,2]
[422242351,1778754183000,-1871.2249,0.00010078,2]
[422242369,1778754184000,-716.0,0.00010325,2]
[422242368,1778754184000,-716.0,0.00010325,2]
[422242367,1778754184000,-716.0,0.00010325,2]
[422242366,1778754184000,-716.0,0.00010325,2]
[422242364,1778754184000,-716.0,0.00010325,2]
[422242365,1778754184000,-716.0,0.00010325,2]
[422242363,1778754184000,-716.0,0.00010325,2]
[422242360,1778754184000,-150.0,0.00010324,2]
[422242362,1778754184000,-716.0,0.00010325,2]
[422242359,1778754184000,-1200.0,0.00010324,2]
[422242356,1778754184000,-530.15605316,0.00010225,2]
[422242357,1778754184000,-150.0,0.00010227,2]
[422242355,1778754184000,-223.3,0.00010191,2]
[422242353,1778754184000,-150.0,0.00010127,2]
[422242352,1778754184000,-530.15605316,0.00010126,2]
[422242354,1778754184000,-302.57,0.00010142,2]
[422242361,1778754184000,-300.0,0.00010324,2]
[422242370,1778754184000,-716.0,0.00010325,2]
[422242358,1778754184000,-1423.05,0.00010278,2]
[422242373,1778754184000,-500.0,0.00010325,2]
[422242372,1778754184000,-716.0,0.00010325,2]
[422242388,1778754184000,-182.63545441,0.00010325,2]
[422242389,1778754184000,-716.0,0.00010325,2]
[422242383,1778754184000,-252.82730704,0.00010325,2]
[422242387,1778754184000,-500.0,0.00010325,2]
[422242384,1778754184000,-500.0,0.00010325,2]
[422242385,1778754184000,-716.0,0.00010325,2]
[422242382,1778754184000,-716.0,0.00010325,2]
[422242386,1778754184000,-716.0,0.00010325,2]
[422242380,1778754184000,-716.0,0.00010325,2]
[422242381,1778754184000,-500.0,0.00010325,2]
[422242379,1778754184000,-716.0,0.00010325,2]
[422242375,1778754184000,-171.8467304,0.00010325,2]
[422242376,1778754184000,-716.0,0.00010325,2]
[422242377,1778754184000,-150.0,0.00010325,2]
[422242374,1778754184000,-150.0,0.00010325,2]
[422242371,1778754184000,-150.0,0.00010325,2]
[422242378,1778754184000,-500.0,0.00010325,2]
[422242399,1778754185000,-716.0,0.00010325,2]
[422242398,1778754185000,-716.0,0.00010325,2]
[422242397,1778754185000,-716.0,0.00010325,2]
[422242396,1778754185000,-716.0,0.00010325,2]
[422242395,1778754185000,-716.0,0.00010325,2]
[422242390,1778754185000,-500.0,0.00010325,2]
[422242394,1778754185000,-619.59512894,0.00010325,2]
[422242392,1778754185000,-213.49251988,0.00010325,2]
[422242391,1778754185000,-286.50748012,0.00010325,2]
[422242400,1778754185000,-716.0,0.00010325,2]
[422242393,1778754185000,-500.0,0.00010325,2]
[422242401,1778754185000,-724.82399749,0.00010325,2]
[422242402,1778754185000,-542.0,0.00010325,2]
[422242403,1778754185000,-500.0,0.00010325,2]
[422242414,1778754185000,-542.0,0.00010325,2]
[422242413,1778754185000,-500.0,0.00010325,2]
[422242412,1778754185000,-542.0,0.00010325,2]
[422242410,1778754185000,-500.0,0.00010325,2]
[422242408,1778754185000,-500.0,0.00010325,2]
[422242411,1778754185000,-507.46289621,0.00010325,2]
[422242407,1778754185000,-542.0,0.00010325,2]
[422242406,1778754185000,-542.0,0.00010325,2]
[422242405,1778754185000,-500.0,0.00010325,2]
[422242404,1778754185000,-542.0,0.00010325,2]
[422242409,1778754185000,-542.0,0.00010325,2]
[422242423,1778754186000,-542.0,0.00010325,2]
[422242428,1778754186000,-542.0,0.00010325,2]
[422242429,1778754186000,-531.02212793,0.00010325,2]
[422242427,1778754186000,-500.0,0.00010325,2]
[422242426,1778754186000,-500.0,0.00010325,2]
[422242425,1778754186000,-542.0,0.00010325,2]
[422242424,1778754186000,-500.0,0.00010325,2]
[422242417,1778754186000,-542.0,0.00010325,2]
[422242421,1778754186000,-500.0,0.00010325,2]
[422242420,1778754186000,-542.0,0.00010325,2]
[422242419,1778754186000,-500.0,0.00010325,2]
[422242418,1778754186000,-478.31810417,0.00010325,2]
[422242432,1778754186000,-500.0,0.00010325,2]
[422242415,1778754186000,-500.0,0.00010325,2]
[422242416,1778754186000,-500.0,0.00010325,2]
[422242422,1778754186000,-500.0,0.00010325,2]
[422242430,1778754186000,-500.0,0.00010325,2]
[422242444,1778754186000,-500.0,0.00010325,2]
[422242433,1778754186000,-542.0,0.00010325,2]
[422242431,1778754186000,-542.0,0.00010325,2]
[422242447,1778754186000,-500.0,0.00010325,2]
[422242448,1778754186000,-440.86781848,0.00010325,2]
[422242446,1778754186000,-500.0,0.00010325,2]
[422242445,1778754186000,-500.0,0.00010325,2]
[422242443,1778754186000,-500.0,0.00010325,2]
[422242442,1778754186000,-500.0,0.00010325,2]
[422242449,1778754186000,-542.0,0.00010325,2]
[422242441,1778754186000,-542.0,0.00010325,2]
[422242440,1778754186000,-500.0,0.00010325,2]